[Event "55th Biel Festival MTO 2022"]
[Site "Biel"]
[Date "2022.07.18"]
[Round "5.14"]
[White "Gaehwiler Gabriel"]
[Black "Petrov Martin"]
[Result "0-1"]
[ECO "E08"]
[WhiteElo "2420"]
[BlackElo "2534"]
[Annotator "TA"]
[PlyCount "64"]
[EventDate "2022.07.13"]
[EventType "swiss"]
[EventCountry "SUI"]
[SourceTitle "playchess.com"]
[Source "ChessBase"]
[SourceQuality "1"]
[TimeControl "40/5400+30:1800+30"]

{[%evp 18,64,7,6,16,0,4,0,0,0,0,0,-8,0,-9,-5,0,0,0,0,0,-83,0,0,0,0,0,0,6,6,29,39,32,24,38,16,63,0,0,0,0,-277,-282,-282,-282,-29985,-29986,-29986,-29987]} 1. d4 {[%emt 0:02:27]} Nf6 {[%emt 0:00:29]} 2. c4 {[%emt 0:00:30]} e6 {[%emt 0:00:15]} 3. Nf3 {[%emt 0:00:16]} d5 {[%emt 0:01:34]} 4. g3 {[%emt 0:03:02]} Bb4+ {[%emt 0:04:58]} 5. Bd2 {[%emt 0:00:31]} Be7 {[%emt 0:00:06]} 6. Bg2 {[%emt 0:02:09]} O-O {[%emt 0:00:06]} 7. Qc2 {[%emt 0:06:13]} Nbd7 {[%emt 0:01:15]} 8. O-O {[%emt 0:00:28]} c6 {[%emt 0:00:08]} 9. Bf4 {[%emt 0:01:17]} b6 {[%emt 0:00:26]} 10. Rd1 {[%emt 0:01:06] 10.Nbd2 injects fresh life into this line.} Ba6 {[%emt 0:00:25] E08: Closed Catalan: Main Line: 7 Qc2.} 11. Ne5 {[%emt 0:09:46]} (11. cxd5 {with more complications.} cxd5 12. Ne5 Nxe5 13. dxe5 Ng4 14. Bf3) 11... Rc8 {[%emt 0:02:06]} 12. Nc3 {[%emt 0:07:10]} Bxc4 {[%emt 0:09:19] The position is equal.} 13. Nxc4 {[%emt 0:18:12]} dxc4 {[%emt 0:00:16]} 14. e4 {[%emt 0:16:16] Inhibits Nd5.} b5 {[%emt 0:28:43]} 15. d5 {[%emt 0:03:36]} cxd5 {[%emt 0:01:13]} 16. exd5 {[%emt 0:00:20]} e5 {[%emt 0:00:49]} 17. d6 {[%emt 0:10:28] Threatens to win with Be3.} exf4 {[%emt 0:11:54]} 18. Nxb5 {[%emt 0:02:49]} Rc5 {[%emt 0:01:51] [#]} 19. Qa4 $146 {[%emt 0:08:30] [#]} (19. dxe7 $11 Qxe7 20. Nd6) ({Predecessor:} 19. a4 a6 20. dxe7 Qxe7 21. Nd6 fxg3 22. hxg3 h5 23. Rd4 Rb8 24. Rad1 Nf8 25. Rxc4 Rxc4 26. Nxc4 {½-½ (56) Yuffa,D (2566)-Matlakov,M (2704) Sochi 2018}) 19... Bxd6 {[%emt 0:07:38]} 20. Nxd6 $11 {[%emt 0:00:11] Nb7 is the strong threat.} Qc7 {[%emt 0:03:20]} 21. Rac1 {[%emt 0:01:28][%cal Rc1c4]} (21. gxf4 Nb6 22. Qc2 Nbd5 23. Bxd5 Rxd5 $17) 21... Nb6 {[%emt 0:18:53]} 22. Qa6 {[%emt 0:02:43]} c3 {[%emt 0:04:09]} 23. bxc3 {[%emt 0:00:43]} Rxc3 {[%emt 0:00:06]} 24. Rxc3 {[%emt 0:01:00]} Qxc3 {[%emt 0:00:04]} 25. Qxa7 {[%emt 0:00:07]} Qc2 {[%emt 0:00:06]} 26. Bf3 {[%emt 0:00:46]} Na4 {[%emt 0:00:28] [#]} (26... Nbd7 $11) 27. Qe7 {[%emt 0:01:16]} ({Don't play} 27. gxf4 Nb2 28. Ra1 Qd3 $15) (27. Nxf7 $1 $14 Qxa2 28. Ng5 fxg3 29. hxg3) 27... Nc3 {[%emt 0:01:03] Pair of Knights!} 28. Rd4 {[%emt 0:00:34][%cal Od6f7]} Qxa2 $40 {[%emt 0:01:02][%mdl 128] Black is up to no good.} 29. gxf4 $2 {[%emt 0:00:29][%mdl 8192]} (29. Nc4 $11 fxg3 30. hxg3) 29... Qa1+ $19 {[%emt 0:00:45]} 30. Kg2 {[%emt 0:00:04] aiming for Rd3.} Ne2 $1 {[%emt 0:00:37] Dancing on a razor blade.} 31. Rc4 $2 {[%emt 0:00:48]} (31. Bxe2 $19 Qxd4 32. Qe5) 31... Qg1+ {[%emt 0:00:05]} 32. Kh3 {[%emt 0:00:01]} Qf1+ {[%emt 0:00:16] Weighted Error Value: White=0.67/Black=0.08 (flawless)} 0-1

[Event "55th Biel Festival MTO 2022"]
[Site "Biel"]
[Date "2022.07.18"]
[Round "5.15"]
[White "Iniyan P"]
[Black "Song, Julien"]
[Result "1-0"]
[ECO "D33"]
[WhiteElo "2533"]
[BlackElo "2391"]
[Annotator "TA"]
[PlyCount "131"]
[EventDate "2022.07.13"]
[EventType "swiss"]
[EventCountry "SUI"]
[SourceTitle "playchess.com"]
[Source "ChessBase"]
[SourceQuality "1"]
[TimeControl "40/5400+30:1800+30"]

{[%evp 16,131,32,27,34,33,25,31,28,21,60,57,56,36,42,51,59,58,61,61,56,50,59,43,51,35,41,43,88,88,88,104,104,100,100,93,103,100,97,87,109,111,130,108,117,114,131,131,131,131,137,137,184,165,206,200,299,315,315,280,488,462,463,449,591,583,591,591,591,568,559,532,1206,1104,1133,1059,791,416,504,504,478,295,504,266,438,379,292,261,261,252,1203,1078,1062,0,1014,252,1191,1128,1124,1094,1084,1060,975,200,1190,1044,29972,29973,29975,29975,29975,29976,29976,29977,29977,29978,29977,29971]} 1. d4 {[%emt 0:04:50]} d5 {[%emt 0:00:05]} 2. c4 {[%emt 0:00:08]} e6 {[%emt 0:00:07]} 3. Nc3 {[%emt 0:00:06]} c5 {[%emt 0:00:11]} 4. cxd5 {[%emt 0:00:11]} exd5 {[%emt 0:00:08]} 5. Nf3 {[%emt 0:00:08]} Nc6 {[%emt 0:00:10]} 6. g3 {[%emt 0:00:06]} Nf6 {[%emt 0:00:11]} 7. Bg2 {[%emt 0:00:04]} cxd4 {[%emt 0:00:14] now supersedes 7...Be7.} 8. Nxd4 {[%emt 0:00:09]} Bc5 {[%emt 0:00:07]} 9. Nb3 {[%emt 0:00:24][%csl LRc5,LRd5]} Bb6 {[%emt 0:00:22] D33: Tarrasch Defence: 6 g3 sidelines.} 10. O-O {[%emt 0:00:15]} ({Much weaker is} 10. Bxd5 Nb4 11. Bf3 Qxd1+ 12. Kxd1 O-O $11) 10... d4 {[%emt 0:00:39]} 11. Na4 {[%emt 0:00:20]} O-O {[%emt 0:00:16] White is slightly better.} 12. Bg5 {[%emt 0:03:21]} h6 {[%emt 0:00:35]} (12... Re8 {is interesting.} 13. Nxb6 axb6 14. e3 dxe3 15. Bxe3 Bd7) 13. Bxf6 {[%emt 0:00:58]} (13. Bxc6 {is more complex.} bxc6 14. Bxf6 Qxf6 15. Nxb6 axb6 16. Qxd4 Rd8 17. Qxf6 gxf6 18. Rfc1) 13... Qxf6 {[%emt 0:00:08]} 14. Nxb6 {[%emt 0:00:18]} axb6 {[%emt 0:00:05]} 15. Bxc6 {[%emt 0:00:09]} bxc6 {[%emt 0:00:13]} 16. Qxd4 {[%emt 0:00:05]} Rd8 {[%emt 0:00:16]} 17. Qxf6 {[%emt 0:04:50]} gxf6 {[%emt 0:00:20] [#]} 18. Rfc1 $146 {[%emt 0:11:13]} ({Predecessor:} 18. Rfd1 Rxd1+ 19. Rxd1 Be6 20. Nc1 Bxa2 21. Nxa2 Rxa2 22. Rd6 Kg7 23. Rxc6 Rxb2 24. e4 {½-½ (32) Karjakin,S (2743)-Dubov,D (2720) Wijk aan Zee 2022}) 18... Be6 {[%emt 0:00:40]} 19. Kf1 $1 {[%emt 0:00:23]} Ra4 $1 {[%emt 0:30:40]} 20. Rc3 {[%emt 0:00:07]} c5 {[%emt 0:04:50]} 21. Ke1 {[%emt 0:03:37]} c4 {[%emt 0:02:01]} 22. Nd2 {[%emt 0:00:27]} b5 {[%emt 0:00:35]} 23. Rcc1 {[%emt 0:08:31]} Rda8 {[%emt 0:17:10]} 24. a3 {[%emt 0:00:12]} Kg7 {[%emt 0:00:19]} 25. f3 {[%emt 0:01:45]} f5 {[%emt 0:04:32]} 26. Kf2 {[%emt 0:05:23]} Kf6 {[%emt 0:02:26]} 27. Ke3 {[%emt 0:06:41]} h5 {[%emt 0:05:45][%cal Oh5h4]} 28. h4 {[%emt 0:01:58]} Rg8 {[%emt 0:04:56]} 29. Kf2 {[%emt 0:00:13]} Rb8 {[%emt 0:10:40]} 30. Rab1 {[%emt 0:00:50]} Ra7 {[%emt 0:02:40]} 31. Nf1 {[%emt 0:02:04]} b4 {[%emt 0:04:52]} 32. axb4 {[%emt 0:00:07]} Rxb4 {[%emt 0:00:10]} 33. Ne3 {[%emt 0:00:05]} Rd7 {[%emt 0:02:37]} (33... Rab7 $16 34. Ng2 Rxb2 35. Rxb2 Rxb2) 34. Rc2 {[%emt 0:00:35]} f4 {[%emt 0:06:01]} 35. gxf4 {[%emt 0:00:22]} Bf5 {[%emt 0:00:02]} (35... Rd4 {might work better.} 36. Ng2 Ke7) 36. Nxf5 $18 {[%emt 0:00:27]} Kxf5 {[%emt 0:00:02][%mdl 4096] Endgame KRR-KRR} 37. Rbc1 {[%emt 0:02:10] Black must now prevent Kg3.} Rd4 $2 {[%emt 0:00:07]} (37... Rc7 38. Ra1 Kf6) 38. e3 {[%emt 0:00:21]} Rd3 {[%emt 0:00:11]} 39. Rxc4 {[%emt 0:00:16]} Rd2+ {[%emt 0:00:49] [#]} 40. Kg3 $1 {[%emt 0:00:07]} Rbxb2 {[%emt 0:00:13]} 41. e4+ {[%emt 0:02:15]} Kf6 {[%emt 0:05:22]} 42. Rc6+ {[%emt 0:00:14]} Kg7 {[%emt 0:05:14] ( -> ...Rg2+)} 43. f5 {[%emt 0:02:29]} Rg2+ {[%emt 0:07:58]} 44. Kf4 {[%emt 0:00:09] Strongly threatening e5.} Rbd2 {[%emt 0:00:15]} 45. Rc7 {[%emt 0:00:35] Threatens to win with e5.} Rd3 {[%emt 0:02:33]} 46. R7c2 {[%emt 0:01:12]} Rxc2 {[%emt 0:01:33]} 47. Rxc2 {[%emt 0:00:06] KR-KR} f6 {[%emt 0:00:06]} 48. Re2 {[%emt 0:01:15]} Rd4 $2 {[%emt 0:04:41]} (48... Ra3 {keeps fighting.} 49. Rg2+ Kf7) 49. Re3 {[%emt 0:00:12]} Kf7 $2 {[%emt 0:01:03]} (49... Rd1 50. Rc3 Rh1 51. Rc7+ Kg8) 50. Ra3 {[%emt 0:00:07]} Kg7 {[%emt 0:00:36]} 51. Ke3 {[%emt 0:00:28]} Rd1 {[%emt 0:00:39]} 52. Kf2 {[%emt 0:02:07]} Rh1 $2 {[%emt 0:00:15]} (52... Rd2+ 53. Kg3 Rd1) 53. Kg2 {[%emt 0:00:41]} Re1 {[%emt 0:02:50]} 54. Kf2 {[%emt 0:00:07]} Rh1 {[%emt 0:00:03]} 55. Re3 $2 {[%emt 0:00:06]} (55. Rd3 Kh7 56. Rd6) 55... Rh2+ $2 {[%emt 0:01:56]} (55... Kf8 56. Re1 Rh2+ 57. Kg3 Ra2) 56. Kg3 {[%emt 0:00:07]} Rh1 {[%emt 0:00:09]} 57. Kg2 {[%emt 0:00:05]} Ra1 {[%emt 0:03:16]} 58. f4 {[%emt 0:00:07][%cal Bf3f4,Bf4e5,Be5e6][%mdl 32]} Kf7 {[%emt 0:01:56]} 59. e5 $2 {[%emt 0:00:54]} (59. Rc3 Ra5 60. Kf2) 59... Ke7 $2 {[%emt 0:00:21]} (59... Ra5 60. Kh3 Ra4) 60. Rb3 {[%emt 0:01:47]} fxe5 {[%emt 0:01:43]} 61. fxe5 {[%emt 0:00:10] White mates.} Ra5 {[%emt 0:00:07]} 62. Rb7+ {[%emt 0:02:54]} Kf8 {[%emt 0:00:14] [#]} 63. Rb8+ $1 {[%emt 0:00:07]} Kf7 {[%emt 0:01:43]} 64. e6+ {[%emt 0:00:14]} Kf6 {[%emt 0:00:44]} 65. Rf8+ {[%emt 0:00:10]} Ke7 {[%emt 0:00:16]} 66. Rf7+ {[%emt 0:00:06] Weighted Error Value: White=0.02 (flawless) /Black=0.24 (precise)} 1-0

[Event "55th Biel Festival MTO 2022"]
[Site "Biel"]
[Date "2022.07.18"]
[Round "5.16"]
[White "Gagare Shardul"]
[Black "Haimovich, Tal"]
[Result "1-0"]
[ECO "C55"]
[WhiteElo "2514"]
[BlackElo "2372"]
[Annotator "TA"]
[PlyCount "127"]
[EventDate "2022.07.13"]
[EventType "swiss"]
[EventCountry "SUI"]
[SourceTitle "playchess.com"]
[Source "ChessBase"]
[SourceQuality "1"]
[TimeControl "40/5400+30:1800+30"]

{[%evp 12,127,25,17,41,19,45,31,47,18,52,28,75,68,72,70,84,83,95,80,93,88,97,99,106,112,109,108,118,154,149,138,193,181,188,189,181,174,168,180,166,179,180,177,231,223,214,214,211,213,237,225,324,299,364,230,329,335,367,366,391,407,397,399,413,388,574,387,520,518,495,294,294,294,289,289,288,278,284,283,400,422,408,397,533,518,516,526,537,537,527,497,568,569,547,526,645,654,701,684,819,812,812,795,923,848,1141,1141,1122,1109,1104,1099,1035,1019,975,935,1606,1531]} 1. e4 {[%emt 0:04:50]} e5 {[%emt 0:00:10]} 2. Bc4 {[%emt 0:00:36]} Nf6 {[%emt 0:00:12]} 3. d3 {[%emt 0:00:04]} Nc6 {[%emt 0:00:34]} 4. Nf3 {[%emt 0:00:43]} Be7 {[%emt 0:00:30]} 5. O-O {[%emt 0:00:39]} O-O {[%emt 0:00:08]} 6. h3 {[%emt 0:00:07]} d6 {[%emt 0:01:11]} 7. a4 $1 {[%emt 0:00:39][%mdl 4] outshines the older 7.Nc3.} Kh8 {[%emt 0:01:29] C55: Two Knights: 4 d3, 4 d4 exd4 5 e5 and Max Lange Attack.} 8. Nc3 {[%emt 0:01:17]} Ng8 {[%emt 0:06:23]} 9. Nd5 {[%emt 0:00:39]} f5 {[%emt 0:01:55] [#] White is slightly better.} 10. Ra3 $146 {[%emt 0:04:51]} ({Predecessor:} 10. b4 fxe4 11. dxe4 Bf6 12. b5 Nce7 13. Nxf6 Nxf6 14. Re1 Qe8 15. Ra3 Qh5 16. Rc3 Bxh3 17. gxh3 Qxh3 {1-0 (78) Arjun,K (2477)-Priasmoro,N (2501) Chess.com INT 2022}) 10... Bf6 {[%emt 0:03:05]} 11. Re1 {[%emt 0:03:08]} ({Don't play} 11. Nxf6 Nxf6 12. Re1 fxe4 13. dxe4 Qe8 $11) 11... Nce7 {[%emt 0:10:30]} (11... a5 $11) 12. Nxf6 $16 {[%emt 0:23:35] 0x0.0013ba169fbcdp-1022s more active pieces. The black rooks are badly placed.} Nxf6 {[%emt 0:05:22]} 13. d4 $1 {[%emt 0:09:39]} Nxe4 {[%emt 0:12:23]} 14. dxe5 {[%emt 0:00:31]} d5 {[%emt 0:00:19]} 15. Ba2 {[%emt 0:02:30]} c6 {[%emt 0:04:14]} 16. c4 {[%emt 0:10:55]} Be6 {[%emt 0:10:55]} 17. Nd4 {[%emt 0:13:54]} Bg8 {[%emt 0:02:35]} 18. cxd5 {[%emt 0:04:03]} Bxd5 {[%emt 0:11:44]} 19. Bb1 {[%emt 0:04:09]} Ng6 {[%emt 0:06:43]} 20. f3 {[%emt 0:05:00]} Ng3 {[%emt 0:00:44] [#]} 21. f4 $1 {[%emt 0:01:38]} Ne4 {[%emt 0:01:01] [#]} (21... Be4 $16) 22. Kh2 $1 $18 {[%emt 0:01:19]} Ne7 {[%emt 0:06:20] [#]} 23. Nxf5 $1 {[%emt 0:03:31][%mdl 512]} Nxf5 {[%emt 0:00:39]} 24. Bxe4 {[%emt 0:00:08]} Bxe4 {[%emt 0:00:09]} 25. Qxd8 {[%emt 0:00:07]} Raxd8 {[%emt 0:00:35]} 26. Rxe4 {[%emt 0:00:07]} Rd1 {[%emt 0:00:07]} 27. Rc3 {[%emt 0:00:11]} Kg8 {[%emt 0:03:33]} (27... Ne7 $142 28. e6 Kg8) 28. g4 {[%emt 0:02:09]} Ne7 {[%emt 0:00:26]} 29. f5 {[%emt 0:01:39]} Nd5 {[%emt 0:06:50]} 30. Rc2 {[%emt 0:00:02]} Re8 {[%emt 0:00:33]} 31. e6 {[%emt 0:00:30]} Rd3 {[%emt 0:02:10]} (31... h6 $142 32. Bd2 Rf1) 32. Rf2 {[%emt 0:01:30]} h6 {[%emt 0:00:53]} 33. Kg2 {[%emt 0:01:10]} Kf8 {[%emt 0:01:15]} (33... Nf6 {might work better.}) 34. h4 {[%emt 0:00:52][%cal Bh3h4,Bh4h5][%mdl 32]} Ke7 {[%emt 0:00:42]} 35. g5 {[%emt 0:00:16]} hxg5 {[%emt 0:00:16]} 36. Bxg5+ {[%emt 0:00:09]} Kd6 {[%emt 0:00:18]} 37. h5 {[%emt 0:00:18]} Rh8 {[%emt 0:00:51]} 38. Rh4 {[%emt 0:00:29]} ({Less strong is} 38. e7 Kd7 39. Re6 Ke8 $16) 38... Ne3+ {[%emt 0:01:03]} (38... Rg8 {keeps fighting.} 39. Rg4 Rc8 40. Bf4+ Nxf4+ 41. Rfxf4 Rd2+ 42. Kf3 Rxb2) 39. Kh2 {[%emt 0:01:03] aiming for Rf3.} Nd5 {[%emt 0:00:29]} 40. h6 {[%emt 0:00:53]} gxh6 {[%emt 0:00:16]} 41. Bxh6 {[%emt 0:12:45]} (41. f6 $142) 41... Re8 {[%emt 0:01:07]} 42. f6 {[%emt 0:05:48]} Nxf6 {[%emt 0:00:20]} 43. Rxf6 {[%emt 0:00:11]} Rxe6 {[%emt 0:00:03]} 44. Bf8+ {[%emt 0:00:42]} Ke5 {[%emt 0:00:43]} 45. Rf2 {[%emt 0:00:16] And now Rh7 would win.} Rg6 {[%emt 0:09:55]} (45... b6 $142 46. Rh7 Re3 47. Rxa7 Kd5) 46. Rh7 {[%emt 0:00:39] Strongly threatening Re2+.} Rg4 {[%emt 0:10:11]} 47. Re7+ {[%emt 0:01:00]} Kd4 {[%emt 0:01:57]} 48. Rxb7 {[%emt 0:01:00] Rb4+ is the strong threat. White is clearly winning.} a5 {[%emt 0:00:58] Against Rb4+} 49. Ra7 {[%emt 0:04:17]} Rg5 {[%emt 0:03:10]} 50. Be7 {[%emt 0:03:24]} Rh5+ {[%emt 0:01:22]} 51. Kg2 {[%emt 0:00:02]} Kc4 {[%emt 0:01:53]} 52. Rb7 {[%emt 0:01:05]} Rd4 {[%emt 0:03:21]} 53. Bf6 {[%emt 0:01:07]} Rg4+ {[%emt 0:00:34]} 54. Kf3 {[%emt 0:00:08]} Rg6 {[%emt 0:00:37]} 55. Ke3 {[%emt 0:01:12]} Rg4 {[%emt 0:01:15]} 56. Rf4+ {[%emt 0:02:02]} Rxf4 {[%emt 0:00:14]} 57. Kxf4 {[%emt 0:00:02][%mdl 4096] Endgame KRB-KR} Rh3 {[%emt 0:00:39]} 58. Bc3 {[%emt 0:00:32]} Rh5 {[%emt 0:00:56]} 59. Ke3 {[%emt 0:01:19]} Rd5 {[%emt 0:00:32]} 60. Rb6 {[%emt 0:00:30]} Rh5 {[%emt 0:00:39]} 61. Kd2 {[%emt 0:00:13]} Rh2+ {[%emt 0:00:13]} 62. Kc1 {[%emt 0:00:09]} Rh4 {[%emt 0:00:47]} 63. Bxa5 {[%emt 0:00:50] Rb4+ would kill now.} Kd3 {[%emt 0:00:28]} 64. Rb3+ {[%emt 0:00:13] Weighted Error Value: White=0.12 (very precise) /Black=0.34} 1-0

[Event "55th Biel Festival MTO 2022"]
[Site "Biel"]
[Date "2022.07.18"]
[Round "5.17"]
[White "Bharath Subramaniyam H"]
[Black "Papadiamandis, Elliot"]
[Result "1-0"]
[ECO "B51"]
[WhiteElo "2479"]
[BlackElo "2369"]
[Annotator "TA"]
[PlyCount "95"]
[EventDate "2022.07.13"]
[EventType "swiss"]
[EventCountry "SUI"]
[SourceTitle "playchess.com"]
[Source "ChessBase"]
[SourceQuality "1"]
[TimeControl "40/5400+30:1800+30"]

{[%evp 9,95,8,0,0,31,14,22,19,42,20,32,20,42,10,34,32,56,51,58,56,56,43,76,55,43,20,70,61,49,54,49,60,68,25,25,30,28,16,48,51,36,49,127,139,132,141,139,139,127,129,205,208,194,195,291,290,311,277,393,389,407,411,435,366,371,364,456,359,373,359,372,381,375,373,359,348,531,531,531,531,531,531,524,517,531,517,506,500]} 1. e4 {[%emt 0:00:06]} c5 {[%emt 0:03:28]} 2. Nf3 {[%emt 0:00:07]} d6 {[%emt 0:00:07]} 3. Bb5+ {[%emt 0:00:06]} Nd7 {[%emt 0:00:37]} 4. d4 {[%emt 0:00:08]} cxd4 {[%emt 0:00:05]} 5. Nxd4 {[%emt 0:00:06]} Ngf6 {[%emt 0:01:46]} 6. O-O {[%emt 0:00:09] B51: Sicilian: Moscow Variation (3 Bb5+) without 3...Bd7.} g6 {[%emt 0:16:18]} (6... e5 $5 {[%cal Re5d4]} 7. Nb3 Nxe4 $11) 7. Re1 {[%emt 0:00:13]} Bg7 {[%emt 0:00:51]} 8. Bf1 {[%emt 0:00:11] The position is equal.} Nc5 {[%emt 0:04:56]} 9. Nc3 {[%emt 0:01:49]} O-O {[%emt 0:02:51]} 10. a4 {[%emt 0:07:06] [#]} Bd7 $146 {[%emt 0:07:15]} ({Predecessor:} 10... d5 11. e5 Nfe4 12. Nxe4 dxe4 13. Bf4 Qc7 14. Nb5 Qb8 15. Qd4 b6 16. b4 Ne6 17. Qxe4 {1-0 (37) Msellek,I (2384)-El Jawich,A (2309) Dubai 2021}) 11. a5 {[%emt 0:10:24]} Rc8 {[%emt 0:02:36]} 12. f3 {[%emt 0:01:58]} a6 {[%emt 0:14:08]} 13. Be3 {[%emt 0:01:51]} Re8 {[%emt 0:03:12]} 14. Qd2 {[%emt 0:08:39]} Qc7 {[%emt 0:12:00]} 15. Ra3 {[%emt 0:16:48]} Qb8 {[%emt 0:04:21]} 16. Qf2 {[%emt 0:11:44]} e5 {[%emt 0:05:11]} 17. Nb3 {[%emt 0:04:00]} Be6 {[%emt 0:01:19]} (17... Nxb3 $11 18. Rxb3 Qc7) 18. Nxc5 $14 {[%emt 0:09:32]} dxc5 {[%emt 0:00:42]} 19. Na4 {[%emt 0:00:52]} c4 {[%emt 0:02:26]} 20. Nb6 {[%emt 0:05:59]} Rc6 {[%emt 0:03:25]} 21. Rd1 {[%emt 0:00:20]} Rd8 {[%emt 0:02:12]} 22. Raa1 {[%emt 0:00:34]} Bf8 {[%emt 0:02:08]} 23. c3 {[%emt 0:08:04]} Be7 {[%emt 0:01:52]} 24. Be2 {[%emt 0:01:37]} Rxd1+ {[%emt 0:03:20]} 25. Rxd1 {[%emt 0:00:01]} Qc7 {[%emt 0:00:15] Black is now going downhill.} ({Better is} 25... Qe8 $14) 26. Nd5 $16 {[%emt 0:02:49] White is more active.} Bxd5 {[%emt 0:00:21]} 27. exd5 {[%emt 0:00:02]} Rd6 {[%emt 0:00:50]} 28. Bb6 $36 {[%emt 0:00:08][%mdl 2048] White is on the roll.} Qc8 {[%emt 0:04:49][%cal Od6b6] [#] Strongly threatening ...Rxb6!} 29. Bc5 {[%emt 0:03:09]} Nd7 {[%emt 0:00:33]} 30. Bxd6 $18 {[%emt 0:00:19]} Bxd6 {[%emt 0:00:02]} 31. Kh1 {[%emt 0:00:46]} f5 {[%emt 0:00:56]} (31... Kg7 {is a better defense.} 32. g3 Nf6) 32. Qh4 {[%emt 0:00:41]} Qc7 {[%emt 0:00:07]} 33. Qxc4 {[%emt 0:01:04]} Qd8 {[%emt 0:00:33]} (33... Qxc4 $142 34. Bxc4 Kf7) 34. g3 {[%emt 0:00:27]} Nf6 {[%emt 0:00:22]} 35. b4 {[%emt 0:00:56]} Kg7 {[%emt 0:00:08]} 36. Qd3 {[%emt 0:01:37]} h5 {[%emt 0:00:28]} 37. Qd2 {[%emt 0:01:00]} Qe7 {[%emt 0:00:32]} 38. c4 {[%emt 0:00:25] Hoping for c5.} Bxb4 {[%emt 0:00:29]} 39. d6 {[%emt 0:00:10]} Bxd2 {[%emt 0:00:06]} 40. dxe7 {[%emt 0:00:05]} Bxa5 {[%emt 0:01:06][%mdl 4096] Endgame [#] KRB-KBN} 41. Rd7 $3 {[%emt 0:30:36][%mdl 512]} Kf7 {[%emt 0:31:42]} 42. Rxb7 {[%emt 0:02:19] c5 is the strong threat.} Ng8 {[%emt 0:00:11]} (42... Ne8 {might work better.} 43. c5 Nc7 44. Bc4+ Kxe7 45. Bxa6 Kd7 46. Bb5+ Kd8) 43. c5 {[%emt 0:00:38] White threatens Bc4+ and mate. White is clearly winning.} Nxe7 {[%emt 0:00:06]} 44. c6 {[%emt 0:01:09]} Kf6 {[%emt 0:00:00]} 45. c7 {[%emt 0:00:00]} Ke6 {[%emt 0:00:00]} 46. Bxa6 {[%emt 0:00:00]} Kd6 {[%emt 0:00:00]} 47. c8=Q {[%emt 0:00:00]} Nxc8 {[%emt 0:00:00]} 48. Rb5 {[%emt 0:00:00][%csl LRa5,LRc8] Weighted Error Value: White=0.09 (flawless) /Black=0.26 (precise)} 1-0

[Event "55th Biel Festival MTO 2022"]
[Site "Biel"]
[Date "2022.07.18"]
[Round "5.18"]
[White "Stijve, Theo"]
[Black "Rathanvel V S"]
[Result "1/2-1/2"]
[ECO "B51"]
[WhiteElo "2394"]
[BlackElo "2478"]
[Annotator "TA"]
[PlyCount "67"]
[EventDate "2022.07.13"]
[EventType "swiss"]
[EventCountry "SUI"]
[SourceTitle "playchess.com"]
[Source "ChessBase"]
[SourceQuality "1"]
[TimeControl "40/5400+30:1800+30"]

{[%evp 9,67,10,14,18,16,17,6,11,13,12,21,21,33,35,36,37,32,16,27,18,8,0,56,56,63,65,66,66,87,14,36,33,50,18,29,0,0,0,0,0,12,0,4,5,5,3,3,6,39,39,38,38,87,48,57,54,58,39,31,0]} 1. e4 {[%emt 0:00:06]} c5 {[%emt 0:00:17]} 2. Nf3 {[%emt 0:00:07]} d6 {[%emt 0:00:08]} 3. Bb5+ {[%emt 0:00:06]} Nd7 {[%emt 0:00:13]} 4. d4 {[%emt 0:00:07]} cxd4 {[%emt 0:00:19]} 5. Nxd4 {[%emt 0:00:08]} Ngf6 {[%emt 0:01:47]} 6. O-O {[%emt 0:00:10] B51: Sicilian: Moscow Variation (3 Bb5+) without 3...Bd7.} a6 {[%emt 0:00:11]} 7. Bd3 {[%emt 0:00:21]} Nc5 {[%emt 0:01:47]} 8. Re1 {[%emt 0:00:21] The position is equal.} e5 {[%emt 0:14:35]} 9. Nf3 {[%emt 0:00:19] [#]} h6 $146 {[%emt 0:04:16]} ({Predecessor:} 9... Be7 10. c4 O-O 11. Nc3 Nxd3 12. Qxd3 Bg4 13. b3 Rc8 14. Bd2 Nd7 15. h3 Nc5 {1-0 (95) Sokolovsky,Y (2390)-Parkhov,Y (2434) Safed 2021}) 10. c4 {[%emt 0:00:25]} Nxd3 {[%emt 0:03:19]} 11. Qxd3 {[%emt 0:00:09]} Be7 {[%emt 0:00:04]} 12. Nc3 {[%emt 0:02:25]} O-O {[%emt 0:00:29]} 13. Nd2 {[%emt 0:06:10]} Be6 {[%emt 0:20:46][%cal Ob7b5]} 14. Nf1 {[%emt 0:01:32]} Rc8 {[%emt 0:03:41]} 15. b3 {[%emt 0:07:02]} Nd7 {[%emt 0:02:30]} (15... b5 $1 $11) 16. Bb2 $14 {[%emt 0:05:38]} Nc5 {[%emt 0:04:12]} 17. Qe2 {[%emt 0:01:43]} f5 {[%emt 0:12:00]} 18. exf5 $1 {[%emt 0:03:36]} Rxf5 {[%emt 0:00:37][%cal Ob7b5]} 19. Ng3 {[%emt 0:05:07]} ({White should try} 19. Rad1 $16) 19... Rf7 $11 {[%emt 0:00:55][%cal Ob7b5]} 20. Rad1 {[%emt 0:01:55]} Qa5 {[%emt 0:07:30][%cal Ob7b5] Inhibits Ba3.} 21. Ba1 {[%emt 0:11:29]} Qb6 {[%emt 0:02:35]} 22. Nge4 {[%emt 0:06:57]} Nxe4 {[%emt 0:04:48]} 23. Nxe4 {[%emt 0:01:10]} Qc6 {[%emt 0:01:59]} 24. Nc3 {[%emt 0:06:08]} Rcf8 {[%emt 0:03:00]} 25. Rf1 {[%emt 0:08:54]} Qb6 {[%emt 0:04:34][%cal Oe6g4] [#] aiming for ...Bg4!} 26. Nd5 {[%emt 0:13:14]} Bxd5 {[%emt 0:00:28]} 27. Rxd5 {[%emt 0:00:17]} Bg5 {[%emt 0:01:15][%cal Of7f2] Threatens to win with ...Rxf2!} 28. c5 {[%emt 0:04:40]} Qc6 {[%emt 0:00:01]} 29. Rxd6 {[%emt 0:01:46]} Qxc5 {[%emt 0:01:03]} 30. Qxe5 {[%emt 0:00:13]} Qc2 {[%emt 0:02:21]} (30... Qxe5 $14 31. Bxe5 Re8) 31. Qb2 {[%emt 0:04:23]} Rc8 {[%emt 0:00:02] White is slightly better.} 32. a4 {[%emt 0:02:00]} Qf5 {[%emt 0:02:34]} 33. Rdd1 {[%emt 0:02:56]} Rc2 {[%emt 0:00:55]} 34. Qe5 {[%emt 0:02:59] Weighted Error Value: White=0.10 (very precise) /Black=0.10 (very precise)} 1/2-1/2